fUSD/lending_fUSD_20240125
["ID","MTS","AMOUNT","RATE_DAILY","PERIOD"]
[312674019,1706142690777,-500.0,0.00051506,31]
[312674020,1706142690786,-688.21,0.00051506,31]
[312674021,1706142690796,-500.0,0.00051506,2]
[312674022,1706142690807,-500.0,0.00051506,31]
[312674023,1706142690819,-500.0,0.00051506,31]
[312674024,1706142690829,-527.15,0.00051506,31]
[312674025,1706142690838,-500.0,0.00051506,2]
[312674026,1706142690847,-384.39420484,0.00051506,31]
[312674027,1706142690857,-500.95838779,0.00051506,31]
[312674028,1706142690866,-556.3,0.00051506,31]
[312674029,1706142690876,-976.84,0.00051506,7]
[312674030,1706142690886,-500.0,0.00051506,31]
[312674031,1706142690896,-565.89,0.00051506,31]
[312674032,1706142690905,-500.0,0.00051506,31]
[312674033,1706142690914,-500.0,0.00051506,31]
[312674034,1706142690927,-500.0,0.00051506,31]
[312674035,1706142690937,-1000.0,0.00051506,2]
[312674036,1706142690946,-500.0,0.00051506,31]
[312674037,1706142690955,-500.0,0.00051506,31]
[312674038,1706142690964,-500.0,0.00051506,31]
[312674039,1706142690974,-500.0,0.00051506,31]
[312674040,1706142690984,-500.0,0.00051506,31]
[312674041,1706142690993,-500.0,0.00051506,31]
[312674042,1706142691002,-500.0,0.00051506,31]
[312674043,1706142691011,-500.0,0.00051506,31]
[312674044,1706142691020,-500.0,0.00051506,31]
[312674045,1706142691030,-500.0,0.00051506,31]
[312674046,1706142691039,-500.0,0.00051506,31]
[312674047,1706142691048,-500.0,0.00051506,31]
[312674048,1706142691057,-781.79,0.00051506,31]
[312674049,1706142691067,-500.0,0.00051506,31]
[312674050,1706142691076,-500.0,0.00051506,31]
[312674051,1706142691086,-500.0,0.00051506,31]
[312674052,1706142691096,-500.0,0.00051506,31]
[312674053,1706142691105,-500.0,0.00051506,31]
[312674054,1706142691115,-500.0,0.00051506,31]
[312674055,1706142691124,-500.0,0.00051506,31]
[312674056,1706142691134,-500.0,0.00051506,31]
[312674057,1706142691143,-1179.82,0.00051506,31]
[312674058,1706142691153,-3431.79,0.00051506,15]
[312674059,1706142691162,-500.0,0.00051506,31]
[312674060,1706142691172,-568.5,0.00051506,31]
[312674061,1706142691181,-500.0,0.00051506,31]
[312674062,1706142691191,-500.0,0.00051506,31]
[312674063,1706142691200,-1640.43,0.00051506,31]
[312674064,1706142691210,-500.0,0.00051506,31]
[312674065,1706142691219,-500.0,0.00051506,31]
[312674066,1706142691229,-279.32819824,0.00051506,31]
[312674067,1706142691238,-500.0,0.00051506,31]
[312674068,1706142691247,-599.18,0.00051506,31]
[312674069,1706142691257,-500.0,0.00051506,31]
[312674070,1706142691266,-826.78,0.00051506,120]
[312674071,1706142691275,-3450.92,0.00051506,31]
[312674072,1706142691285,-500.0,0.00051506,31]
[312674073,1706142691294,-500.0,0.00051506,31]
[312674074,1706142691304,-500.0,0.00051506,31]
[312674075,1706142691313,-573.32196618,0.00051506,31]
[312674076,1706142691323,-500.0,0.00051506,31]
[312674077,1706142691333,-500.0,0.00051506,31]
[312674078,1706142691342,-500.0,0.00051506,31]
[312674079,1706142691351,-500.0,0.00051506,31]
[312674080,1706142691360,-377.03526525,0.00051506,31]
[312674081,1706142691370,-549.31,0.00051506,31]
[312674082,1706142691379,-386.64966869,0.00051506,31]
[312674083,1706142691389,-951.5,0.00051506,31]
[312674084,1706142691398,-500.0,0.00051506,31]
[312674085,1706142691408,-500.0,0.00051506,31]
[312674086,1706142691417,-500.0,0.00051506,31]
[312674087,1706142691426,-506.14,0.00051506,31]
[312674088,1706142691436,-500.0,0.00051506,31]
[312674089,1706142691445,-500.0,0.00051506,31]
[312674090,1706142691454,-500.0,0.00051506,31]
[312674091,1706142691464,-500.0,0.00051506,31]
[312674092,1706142691474,-488.03190003,0.00051506,31]
[312674093,1706142691484,-500.0,0.00051506,31]
[312674094,1706142691493,-500.0,0.00051506,31]
[312674095,1706142691503,-500.0,0.00051506,31]
[312674096,1706142691512,-500.0,0.00051506,31]
[312674097,1706142691522,-500.0,0.00051506,31]
[312674098,1706142691532,-500.0,0.00051506,31]
[312674099,1706142691542,-500.0,0.00051506,31]
[312674100,1706142691552,-500.0,0.00051506,31]
[312674101,1706142691562,-500.0,0.00051506,31]
[312674102,1706142691572,-586.01,0.00051506,31]
[312674103,1706142691582,-610.51,0.00051506,2]
[312674104,1706142691591,-500.0,0.00051506,31]
[312674105,1706142691601,-500.0,0.00051506,31]
[312674106,1706142691611,-1518.82,0.00051506,2]
[312674107,1706142691622,-787.32,0.00051506,31]
[312674108,1706142691631,-500.0,0.00051506,31]
[312674109,1706142691641,-500.0,0.00051506,31]
[312674110,1706142691651,-500.0,0.00051506,31]
[312674111,1706142691661,-696.9,0.00051506,31]
[312674112,1706142691671,-500.0,0.00051506,31]
[312674113,1706142691681,-500.0,0.00051506,120]
[312674114,1706142691692,-839.16,0.00051506,31]
[312674115,1706142691702,-949.05,0.00051506,31]
[312674116,1706142691711,-1090.8,0.00051506,7]
[312674117,1706142691721,-500.0,0.00051506,31]
[312674118,1706142691731,-500.0,0.00051506,31]
[312674119,1706142691741,-179.230615,0.00051506,31]
[312674120,1706142691751,-500.0,0.00051506,31]
[312674121,1706142691761,-500.0,0.00051506,31]
[312674122,1706142691771,-500.0,0.00051506,31]
[312674123,1706142691781,-500.0,0.00051506,31]
[312674124,1706142691791,-500.0,0.00051506,31]
[312674125,1706142691801,-500.0,0.00051506,31]
[312674126,1706142691812,-500.0,0.00051506,31]
[312674127,1706142691824,-539.39469762,0.00051506,31]
[312674128,1706142691833,-500.0,0.00051506,31]
[312674129,1706142691843,-500.0,0.00051506,31]
[312674130,1706142691853,-500.0,0.00051506,31]
[312674131,1706142691863,-500.0,0.00051506,31]
[312674132,1706142691872,-500.0,0.00051506,31]
[312674133,1706142691882,-500.0,0.00051506,31]
[312674134,1706142691892,-500.0,0.00051506,31]
[312674135,1706142691903,-500.0,0.00051506,31]
[312674136,1706142691913,-500.0,0.00051506,31]
[312674137,1706142691923,-500.0,0.00051506,31]
[312674138,1706142691933,-569.39,0.00051506,31]
[312674139,1706142691942,-500.0,0.00051506,31]
[312674140,1706142691952,-500.0,0.00051506,31]
[312674141,1706142691962,-500.0,0.00051506,31]
[312674142,1706142691972,-500.0,0.00051506,31]
[312674143,1706142691982,-500.0,0.00051506,31]
[312674144,1706142691992,-500.0,0.00051506,31]
[312674145,1706142692003,-631.65675362,0.00051506,31]
[312674146,1706142692013,-500.0,0.00051506,31]
[312674147,1706142692024,-500.0,0.00051506,31]
[312674148,1706142692034,-500.0,0.00051506,31]
[312674149,1706142692044,-500.0,0.00051506,31]
[312674150,1706142692055,-500.0,0.00051506,31]
[312674151,1706142692067,-500.0,0.00051506,31]
[312674152,1706142692077,-500.0,0.00051506,31]
[312674153,1706142692087,-500.0,0.00051506,31]
[312674154,1706142692097,-437.1,0.00051506,31]
[312674155,1706142692107,-500.0,0.00051506,31]
[312674156,1706142692118,-500.0,0.00051506,31]
[312674157,1706142692128,-1012.49,0.00051506,31]
[312674158,1706142692138,-644.40918485,0.00051506,31]
[312674159,1706142692148,-500.0,0.00051506,31]
[312674160,1706142692159,-500.0,0.00051506,31]
[312674161,1706142692170,-500.0,0.00051506,31]
[312674162,1706142692180,-500.0,0.00051506,31]
[312674163,1706142692190,-799.68,0.00051506,31]
[312674164,1706142692200,-500.0,0.00051506,31]
[312674165,1706142692210,-500.0,0.00051506,31]
[312674166,1706142692221,-500.0,0.00051506,31]
[312674167,1706142692230,-500.0,0.00051506,31]
[312674168,1706142692241,-500.0,0.00051506,31]
[312674169,1706142692251,-500.0,0.00051506,31]
[312674170,1706142692261,-500.0,0.00051506,31]
[312674171,1706142692277,-543.8,0.00051506,31]
[312674172,1706142692288,-500.0,0.00051506,31]
[312674173,1706142692298,-500.0,0.00051506,31]
[312674174,1706142692309,-986.07,0.00051506,31]
[312674175,1706142692320,-500.0,0.00051506,31]
[312674176,1706142692329,-500.0,0.00051506,31]
[312674177,1706142692339,-500.0,0.00051506,31]
[312674178,1706142692349,-500.0,0.00051506,31]
[312674179,1706142692359,-500.0,0.00051506,31]
[312674180,1706142692369,-500.0,0.00051506,31]
[312674181,1706142692380,-1153.66,0.00051506,31]
[312674182,1706142692390,-516.65,0.00051506,31]
[312674183,1706142692400,-500.0,0.00051506,31]
[312674184,1706142692411,-500.0,0.00051506,31]
[312674185,1706142692421,-1241.77,0.00051506,31]
[312674186,1706142692431,-500.0,0.00051506,31]
[312674187,1706142692441,-500.0,0.00051506,31]
[312674188,1706142692451,-500.0,0.00051506,31]
[312674189,1706142692460,-500.0,0.00051506,31]
[312674190,1706142692470,-500.0,0.00051506,31]
[312674191,1706142692480,-500.0,0.00051506,31]
[312674192,1706142692491,-500.0,0.00051506,31]
[312674193,1706142692501,-653.39,0.00051506,31]
[312674194,1706142692512,-500.0,0.00051506,31]
[312674195,1706142692522,-836.07,0.00051506,31]
[312674196,1706142692532,-250.0,0.00051506,31]
[312674197,1706142692543,-756.21,0.00051506,31]
[312674198,1706142692553,-515.25,0.00051506,31]
[312674199,1706142692563,-500.0,0.00051506,31]
[312674200,1706142692576,-1013.31,0.00051506,31]
[312674201,1706142692587,-500.0,0.00051506,31]
[312674202,1706142692598,-616.32,0.00051506,31]
[312674203,1706142692608,-528.69,0.00051506,31]
[312674204,1706142692619,-500.0,0.00051506,31]
[312674205,1706142692631,-500.0,0.00051506,31]
[312674206,1706142692642,-956.92,0.00051506,31]
[312674207,1706142692653,-500.0,0.00051506,31]
[312674208,1706142692663,-186.84,0.00051506,31]
[312674209,1706142692674,-500.0,0.00051506,31]
[312674210,1706142692686,-998.0,0.00051506,31]
[312674211,1706142692697,-500.0,0.00051506,31]
[312674212,1706142692708,-682.58,0.00051506,31]
[312674213,1706142692719,-500.0,0.00051506,31]
[312674214,1706142692729,-4855.5,0.00051506,31]
[312674215,1706142692741,-500.0,0.00051506,31]
[312674216,1706142692751,-500.0,0.00051506,31]
[312674217,1706142692762,-500.0,0.00051506,31]
[312674218,1706142692772,-2993.87,0.00051506,31]
[312674219,1706142692783,-500.0,0.00051506,31]
[312674220,1706142692793,-500.0,0.00051506,31]
[312674221,1706142692805,-5084.18,0.00051506,5]
[312674222,1706142692817,-1768.63,0.00051506,31]
[312674223,1706142692827,-900.81,0.00051506,31]
[312674224,1706142692838,-531.92,0.00051506,31]
[312674225,1706142692849,-1000.0,0.00051506,7]
[312674226,1706142692859,-500.0,0.00051506,31]
[312674227,1706142692869,-500.0,0.00051506,31]
[312674228,1706142692880,-414.7467231,0.00051506,31]
[312674229,1706142692891,-801.09,0.00051506,31]
[312674230,1706142692902,-500.0,0.00051506,31]
[312674231,1706142692912,-500.0,0.00051506,31]
[312674232,1706142692922,-500.0,0.00051506,31]
[312674233,1706142692932,-524.49,0.00051506,31]
[312674234,1706142692942,-500.0,0.00051506,31]
[312674235,1706142692953,-500.0,0.00051506,31]
[312674236,1706142692963,-500.0,0.00051506,31]
[312674237,1706142692973,-500.0,0.00051506,31]
[312674238,1706142692984,-544.16,0.00051506,31]
[312674239,1706142692994,-2294.01,0.00051506,31]
[312674240,1706142693004,-500.0,0.00051506,31]
[312674241,1706142693014,-500.0,0.00051506,31]
[312674242,1706142693025,-500.0,0.00051506,31]
[312674243,1706142693035,-671.26,0.00051506,31]
[312674244,1706142693045,-583.12,0.00051506,31]
[312674245,1706142693056,-830.43,0.00051506,31]
[312674246,1706142693067,-652.75,0.00051506,31]
[312674247,1706142693077,-556.8,0.00051506,31]
[312674248,1706142693087,-500.0,0.00051506,31]
[312674249,1706142693098,-545.42,0.00051506,31]
[312674250,1706142693108,-2589.2,0.00051506,31]
[312674251,1706142693118,-541.32,0.00051506,31]
[312674252,1706142693128,-500.0,0.00051506,31]
[312674253,1706142693138,-500.0,0.00051506,31]
[312674254,1706142693148,-545.58,0.00051506,31]
[312674255,1706142693158,-500.0,0.00051506,31]
[312674256,1706142693169,-586.96,0.00051506,31]
[312674257,1706142693179,-659.09,0.00051506,31]
[312674258,1706142693189,-2351.31,0.00051506,31]
[312674259,1706142693199,-1206.46,0.00051506,31]
[312674260,1706142693209,-294.43247548,0.00051506,31]
[312674261,1706142693219,-583.57,0.00051506,31]
[312674262,1706142693229,-524.43,0.00051506,31]
[312674263,1706142693239,-500.0,0.00051506,31]
[312674264,1706142693250,-596.67,0.00051506,31]
[312674265,1706142693260,-966.39,0.00051506,31]
[312674266,1706142693270,-500.0,0.00051506,31]
[312674267,1706142693281,-500.0,0.00051506,31]
[312674268,1706142693291,-612.43,0.00051506,31]
[312674269,1706142693302,-683.16,0.00051506,31]
[312674270,1706142693312,-500.0,0.00051506,31]
[312674271,1706142693324,-710.01,0.00051506,31]
[312674272,1706142693334,-1407.74,0.00051506,31]
[312674273,1706142693344,-500.0,0.00051506,31]
[312674274,1706142693355,-5543.02,0.00051506,31]
[312674275,1706142693365,-500.0,0.00051506,31]
[312674276,1706142693376,-500.0,0.00051506,31]
[312674277,1706142693386,-2066.55,0.00051506,31]
[312674278,1706142693397,-620.76,0.00051506,31]
[312674279,1706142693408,-1016.7,0.00051506,31]
[312674280,1706142693418,-1226.31,0.00051506,31]
[312674281,1706142693428,-500.0,0.00051506,31]
[312674282,1706142693439,-563.82,0.00051506,31]
[312674283,1706142693450,-552.79,0.00051506,31]
[312674284,1706142693461,-742.38,0.00051506,31]
[312674285,1706142693471,-500.0,0.00051506,31]
[312674286,1706142693482,-547.01,0.00051506,31]
[312674287,1706142693492,-500.0,0.00051506,31]
[312674288,1706142693502,-3013.17,0.00051506,31]
[312674289,1706142693512,-514.66,0.00051506,31]
[312674290,1706142693522,-540.87,0.00051506,31]
[312674291,1706142693532,-712.54,0.00051506,31]
[312674292,1706142693543,-2280.94,0.00051506,31]
[312674293,1706142693553,-778.86,0.00051506,31]
[312674294,1706142693564,-950.67,0.00051506,31]
[312674295,1706142693574,-500.0,0.00051506,31]
[312674296,1706142693584,-500.0,0.00051506,31]
[312674297,1706142693594,-500.0,0.00051506,31]
[312674298,1706142693604,-500.0,0.00051506,31]
[312674299,1706142693615,-500.0,0.00051506,31]
[312674300,1706142693625,-1663.46,0.00051506,31]
[312674301,1706142693635,-500.0,0.00051506,31]
[312674302,1706142693645,-649.21,0.00051506,31]
[312674303,1706142693655,-1247.69,0.00051506,31]
[312674304,1706142693665,-787.85,0.00051506,31]
[312674305,1706142693676,-1073.61,0.00051506,31]
[312674306,1706142693685,-500.0,0.00051506,31]
[312674307,1706142693695,-500.0,0.00051506,31]
[312674308,1706142693705,-500.0,0.00051506,31]
[312674309,1706142693716,-500.0,0.00051506,31]
[312674310,1706142693726,-1265.65,0.00051506,31]
[312674311,1706142693736,-618.27,0.00051506,31]
[312674312,1706142693746,-500.0,0.00051506,31]
[312674313,1706142693756,-500.0,0.00051506,31]
[312674314,1706142693771,-3061.04,0.00051506,31]
[312674315,1706142693781,-2426.6,0.00051506,31]
[312674316,1706142693792,-500.0,0.00051506,31]
[312674317,1706142693805,-1315.35,0.00051506,31]
[312674318,1706142693816,-700.1,0.00051506,31]
[312674319,1706142693827,-310.65232556,0.00051506,31]
[312674320,1706142693837,-660.57,0.00051506,31]
[312674321,1706142693848,-706.67,0.00051506,31]
[312674322,1706142693858,-500.0,0.00051506,31]
[312674323,1706142693869,-500.0,0.00051506,31]
[312674324,1706142693879,-860.59,0.00051506,31]
[312674325,1706142693890,-733.61,0.00051506,31]
[312674326,1706142693900,-1000.0,0.00051506,7]
[312674327,1706142693911,-553.53,0.00051506,31]
[312674328,1706142693921,-605.74,0.00051506,31]
[312674329,1706142693931,-501.79,0.00051506,31]
[312674330,1706142693941,-500.0,0.00051506,31]
[312674331,1706142693951,-500.0,0.00051506,31]
[312674332,1706142693961,-564.19,0.00051506,31]
[312674333,1706142693971,-500.0,0.00051506,31]
[312674334,1706142693981,-740.74,0.00051506,31]
[312674335,1706142693991,-500.0,0.00051506,31]
[312674336,1706142694002,-1295.4,0.00051506,31]
[312674337,1706142694012,-519.74,0.00051506,31]
[312674338,1706142694023,-500.0,0.00051506,31]
[312674339,1706142694034,-500.0,0.00051506,31]
[312674340,1706142694044,-500.0,0.00051506,31]
[312674341,1706142694054,-649.59,0.00051506,31]
[312674342,1706142694065,-500.0,0.00051506,31]
[312674343,1706142694076,-537.1,0.00051506,31]
[312674344,1706142694086,-599.29,0.00051506,31]
[312674345,1706142694096,-765.11,0.00051506,31]
[312674346,1706142694106,-3710.41,0.00051506,31]
[312674347,1706142694116,-500.0,0.00051506,31]
[312674348,1706142694126,-500.0,0.00051506,31]
[312674349,1706142694136,-500.0,0.00051506,31]
[312674350,1706142694146,-1451.54,0.00051506,31]
[312674351,1706142694156,-500.0,0.00051506,31]
[312674352,1706142694201,-737.72,0.00051506,31]
[312674353,1706142694212,-658.3,0.00051506,31]
[312674354,1706142694222,-500.0,0.00051506,31]
[312674355,1706142694232,-500.0,0.00051506,31]
[312674356,1706142694242,-500.0,0.00051506,31]
[312674357,1706142694252,-748.16,0.00051506,31]
[312674358,1706142694262,-536.66,0.00051506,31]
[312674359,1706142694272,-500.0,0.00051506,31]
[312674360,1706142694283,-655.7,0.00051506,31]
[312674361,1706142694294,-937.73,0.00051506,2]
[312674362,1706142694533,-678.69,0.00051506,31]
[312674363,1706142694543,-500.0,0.00051506,31]
[312674364,1706142694552,-500.0,0.00051506,31]
[312674365,1706142694563,-764.66,0.00051506,31]
[312674366,1706142694574,-673.27,0.00051506,31]
[312674367,1706142694584,-820.44,0.00051506,31]
[312674368,1706142694594,-797.85,0.00051506,31]
[312674369,1706142694604,-500.0,0.00051506,31]
[312674370,1706142694614,-500.0,0.00051506,31]
[312674371,1706142694624,-500.0,0.00051506,31]
[312674372,1706142694634,-500.0,0.00051506,31]
[312674373,1706142694644,-515.5,0.00051506,31]
[312674374,1706142694653,-618.86,0.00051506,31]
[312674375,1706142694664,-500.0,0.00051506,31]
[312674376,1706142694673,-792.67,0.00051506,31]
[312674377,1706142694683,-1129.79,0.00051506,31]
[312674378,1706142694693,-717.84,0.00051506,31]
[312674379,1706142694703,-500.0,0.00051506,31]
[312674380,1706142694713,-510.96,0.00051506,31]
[312674381,1706142694724,-500.0,0.00051506,31]
[312674382,1706142694734,-500.0,0.00051506,31]
[312674383,1706142694743,-600.26,0.00051506,31]
[312674384,1706142694752,-689.9,0.00051506,31]
[312674385,1706142694762,-500.0,0.00051506,31]
[312674386,1706142694772,-594.93,0.00051506,2]
[312674387,1706142694782,-738.6,0.00051506,31]
[312674388,1706142694792,-757.86,0.00051506,2]
[312674389,1706142694802,-1187.72,0.00051506,31]
[312674390,1706142694814,-724.18,0.00051506,31]
[312674391,1706142694826,-754.82,0.00051506,31]
[312674392,1706142694836,-500.0,0.00051506,31]
[312674393,1706142694846,-500.0,0.00051506,31]
[312674394,1706142694857,-500.0,0.00051506,31]
[312674395,1706142694868,-1281.32,0.00051506,31]
[312674396,1706142694878,-2728.94,0.00051506,31]
[312674397,1706142694887,-557.24,0.00051506,31]
[312674398,1706142694898,-151.0,0.00051506,14]
[312674399,1706142694909,-374.74972718,0.00051533,60]
[312674400,1706142694918,-151.0,0.00051552,2]
[312674401,1706142694928,-4998.49650352,0.00051563,6]
[312674402,1706142694938,-205.0,0.00051565,20]
[312674403,1706142694947,-153.21386405,0.00051575,60]
[312674404,1706142694956,-155.25098285,0.00051597,60]
[312674405,1706142694967,-153.21386405,0.00051602,60]
[312674406,1706142694977,-153.95702125,0.00051607,60]
[312674407,1706142694986,-164.81285387,0.00051626,60]
[312674408,1706142694995,-392.16327829,0.0005163,60]
[312674409,1706142695005,-158.45724665,0.00051631,60]
[312674410,1706142695015,-158.39181887,0.0005164,60]
[312674411,1706142695025,-164.81285387,0.00051643,60]
[312674412,1706142695035,-155.0,0.00051647,60]
[312674413,1706142695045,-1414.43386236,0.00051653,60]
[312674414,1706142695056,-154.44443256,0.00051657,60]
[312674415,1706142695065,-150.0,0.00051672,7]
[312674416,1706142695078,-204.0,0.0005169,2]
[312674417,1706142695089,-2594.0,0.000517,117]
[312674418,1706142695100,-152.74,0.000517,7]
[312674419,1706142695110,-152.74,0.000517,7]
[312674420,1706142695121,-152.74,0.000517,7]
[312674421,1706142695131,-152.74,0.000517,7]
[312674422,1706142695142,-152.74,0.000517,7]
[312674423,1706142695153,-152.74,0.000517,7]
[312674424,1706142695164,-152.74,0.000517,7]
[312674425,1706142695175,-158.12,0.000517,4]
[312674426,1706142695186,-158.12,0.000517,4]
[312674427,1706142695197,-158.12,0.000517,4]
[312674428,1706142695208,-158.12,0.000517,4]
[312674429,1706142695219,-158.12,0.000517,4]
[312674430,1706142695230,-158.12,0.000517,4]
[312674431,1706142695240,-156.43151779,0.00051701,60]
[312674432,1706142695251,-156.43151779,0.00051713,60]
[312674433,1706142695261,-153.21386405,0.00051714,60]
[312674434,1706142695271,-150.0,0.00051717,7]
[312674435,1706142695281,-162.27493029,0.00051718,60]
[312674436,1706142695292,-374.74972718,0.00051727,60]
[312674437,1706142695302,-153.95702125,0.00051729,60]
[312674438,1706142695312,-1414.43386236,0.00051749,60]
[312674439,1706142695322,-151.0,0.0005178,14]
[312674440,1706142695331,-160.0,0.0005178,2]
[312674441,1706142695342,-958.74812135,0.0005178,30]
[312674442,1706142695352,-1205.65725877,0.0005178,4]
[312674443,1706142695362,-160.0,0.0005178,2]
[312674444,1706142695372,-958.74812135,0.0005178,30]
[312674445,1706142695382,-163.71560757,0.0005178,2]
[312674446,1706142695391,-1205.65725877,0.0005178,4]
[312674447,1706142695401,-500.0,0.0005178,31]
[312674448,1706142695411,-595.87,0.0005178,31]
[312674449,1706142695421,-500.0,0.0005178,31]
[312674450,1706142695431,-500.0,0.0005178,31]
[312674451,1706142695440,-545.8,0.0005178,31]
[312674452,1706142695450,-500.0,0.0005178,31]
[312674453,1706142695460,-500.0,0.0005178,31]
[312674454,1706142695469,-500.0,0.0005178,31]
[312674455,1706142695479,-500.0,0.0005178,31]
[312674456,1706142695489,-500.0,0.0005178,31]
[312674457,1706142695499,-500.0,0.0005178,31]
[312674458,1706142695508,-500.0,0.0005178,31]
[312674459,1706142695518,-500.0,0.0005178,31]
[312674460,1706142695528,-500.0,0.0005178,31]
[312674461,1706142695538,-500.0,0.0005178,31]
[312674462,1706142695547,-500.0,0.0005178,31]
[312674463,1706142695557,-500.0,0.0005178,31]
[312674464,1706142695567,-500.0,0.0005178,31]
[312674465,1706142695579,-347.46548563,0.0005178,31]
[312674466,1706142695588,-500.0,0.0005178,31]
[312674467,1706142695598,-500.0,0.0005178,31]
[312674468,1706142695607,-500.0,0.0005178,31]
[312674469,1706142695617,-473.07526688,0.0005178,31]
[312674470,1706142695627,-382.77382744,0.0005178,31]
[312674471,1706142695636,-500.0,0.0005178,31]
[312674472,1706142695646,-500.0,0.0005178,31]
[312674473,1706142695656,-500.0,0.0005178,31]
[312674474,1706142695666,-500.0,0.0005178,31]
[312674475,1706142695676,-500.0,0.0005178,31]
[312674476,1706142695685,-500.0,0.0005178,31]
[312674477,1706142695695,-500.0,0.0005178,31]
[312674478,1706142695705,-500.0,0.0005178,20]
[312674479,1706142695715,-500.0,0.0005178,31]
[312674480,1706142695726,-160.23127388,0.0005178,31]
[312674481,1706142695737,-500.0,0.0005178,31]
[312674482,1706142695747,-500.0,0.0005178,14]
[312674483,1706142695758,-500.0,0.0005178,31]
[312674484,1706142695768,-500.0,0.0005178,31]
[312674485,1706142695778,-500.0,0.0005178,31]
[312674486,1706142695788,-500.0,0.0005178,31]
[312674487,1706142695798,-500.0,0.0005178,31]
[312674488,1706142695811,-500.0,0.0005178,31]
[312674489,1706142695821,-1202.05,0.0005178,31]
[312674490,1706142695831,-546.04,0.0005178,31]
[312674491,1706142695842,-500.0,0.0005178,31]
[312674492,1706142695852,-500.0,0.0005178,31]
[312674493,1706142695861,-689.23,0.0005178,2]
[312674494,1706142695871,-839.27,0.0005178,2]
[312674495,1706142695881,-500.0,0.0005178,31]
[312674496,1706142695890,-500.0,0.0005178,31]
[312674497,1706142695900,-1213.27,0.0005178,31]
[312674498,1706142695909,-500.0,0.0005178,31]
[312674499,1706142695918,-500.0,0.0005178,31]
[312674500,1706142695928,-689.7,0.0005178,31]
[312674501,1706142695937,-500.0,0.0005178,31]
[312674502,1706142695947,-688.21,0.0005178,31]
[312674503,1706142695956,-500.0,0.0005178,2]
[312674504,1706142695965,-500.0,0.0005178,31]
[312674505,1706142695975,-527.15,0.0005178,31]
[312674506,1706142695985,-500.0,0.0005178,2]
[312674507,1706142695995,-500.0,0.0005178,31]
[312674508,1706142696004,-556.3,0.0005178,31]
[312674509,1706142696013,-976.84,0.0005178,7]
[312674510,1706142696023,-500.0,0.0005178,31]
[312674511,1706142696032,-565.89,0.0005178,31]
[312674512,1706142696042,-500.0,0.0005178,31]
[312674513,1706142696052,-500.0,0.0005178,31]
[312674514,1706142696062,-500.0,0.0005178,31]
[312674515,1706142696072,-538.16284799,0.0005178,2]
[312674516,1706142696083,-500.0,0.0005178,31]
[312674517,1706142696092,-500.0,0.0005178,31]
[312674518,1706142696102,-500.0,0.0005178,31]